fUSD/lending_fUSD_20250123
["ID","MTS","AMOUNT","RATE_DAILY","PERIOD"]
[350047052,1737591037396,-500.0,0.00019451,2]
[350047053,1737591037407,-500.0,0.00019451,2]
[350047054,1737591037418,-500.0,0.00019451,2]
[350047055,1737591037429,-500.86611863,0.00019451,2]
[350047056,1737591037439,-506.64942413,0.00019451,2]
[350047057,1737591037450,-500.0,0.00019451,2]
[350047058,1737591037461,-500.0,0.00019451,2]
[350047059,1737591037471,-500.0,0.00019451,2]
[350047060,1737591037483,-500.0,0.00019451,2]
[350047061,1737591037492,-500.0,0.00019451,2]
[350047062,1737591037502,-524.34332142,0.00019451,2]
[350047063,1737591037512,-500.0,0.00019451,2]
[350047064,1737591037523,-500.0,0.00019451,2]
[350047065,1737591037534,-500.0,0.00019451,2]
[350047066,1737591037545,-500.0,0.00019451,2]
[350047067,1737591037555,-500.0,0.00019451,2]
[350047068,1737591037565,-500.0,0.00019451,2]
[350047069,1737591037577,-500.0,0.00019451,2]
[350047070,1737591037587,-500.0,0.00019451,2]
[350047071,1737591037596,-507.92713779,0.00019451,2]
[350047072,1737591037606,-500.0,0.00019451,2]
[350047073,1737591037616,-500.0,0.00019451,2]
[350047074,1737591037625,-500.0,0.00019451,2]
[350047075,1737591037636,-500.0,0.00019451,2]
[350047076,1737591037646,-500.0,0.00019451,2]
[350047077,1737591037655,-500.0,0.00019451,2]
[350047078,1737591037665,-500.0,0.00019451,2]
[350047079,1737591037675,-506.22089321,0.00019451,2]
[350047080,1737591037685,-500.0,0.00019451,2]
[350047081,1737591037696,-738.55,0.00019451,2]
[350047082,1737591037706,-500.0,0.00019451,2]
[350047083,1737591037718,-500.0,0.00019451,2]
[350047084,1737591037729,-500.0,0.00019451,2]
[350047085,1737591037928,-500.0,0.00019451,2]
[350047086,1737591037946,-500.0,0.00019451,2]
[350047087,1737591037956,-513.89,0.00019451,2]
[350047088,1737591037965,-500.0,0.00019451,2]
[350047089,1737591037975,-1203.91,0.00019451,2]
[350047090,1737591037987,-500.0,0.00019451,2]
[350047091,1737591037997,-500.0,0.00019451,2]
[350047092,1737591038006,-500.0,0.00019451,2]
[350047093,1737591038016,-500.0,0.00019451,2]
[350047094,1737591038026,-500.0,0.00019451,2]
[350047095,1737591038037,-500.0,0.00019451,2]
[350047096,1737591038047,-620.14,0.00019451,2]
[350047097,1737591038056,-500.0,0.00019451,2]
[350047098,1737591038066,-500.0,0.00019451,2]
[350047099,1737591038075,-1278.86,0.00019451,2]
[350047100,1737591038085,-500.0,0.00019451,2]
[350047101,1737591038095,-500.0,0.00019451,2]
[350047102,1737591038105,-500.0,0.00019451,2]
[350047103,1737591038115,-500.0,0.00019451,2]
[350047104,1737591038125,-500.0,0.00019451,2]
[350047105,1737591038134,-500.0,0.00019451,2]
[350047106,1737591038143,-500.0,0.00019451,2]
[350047107,1737591038153,-500.0,0.00019451,2]
[350047108,1737591038163,-500.0,0.00019451,2]
[350047109,1737591038173,-500.0,0.00019451,2]
[350047110,1737591038183,-3014.54,0.00019451,2]
[350047111,1737591038193,-500.0,0.00019451,2]
[350047112,1737591038203,-500.0,0.00019451,2]
[350047113,1737591038216,-500.0,0.00019451,2]
[350047114,1737591038226,-621.9,0.00019451,2]
[350047115,1737591038242,-503.05339074,0.00019451,2]
[350047116,1737591038252,-831.3,0.00019451,2]
[350047117,1737591038262,-536.38,0.00019451,2]
[350047118,1737591038272,-527.77458849,0.00019451,2]
[350047119,1737591038282,-500.0,0.00019451,2]
[350047120,1737591038292,-500.0,0.00019451,2]
[350047121,1737591038303,-500.0,0.00019451,2]
[350047122,1737591038313,-500.0,0.00019451,2]
[350047123,1737591038323,-580.3297823,0.00019451,2]
[350047124,1737591038334,-1830.75,0.00019451,2]
[350047125,1737591038344,-500.0,0.00019451,2]
[350047126,1737591038354,-500.0,0.00019451,2]
[350047127,1737591038364,-500.0,0.00019451,2]
[350047128,1737591038374,-500.0,0.00019451,2]
[350047129,1737591038384,-595.8,0.00019451,2]
[350047130,1737591038395,-780.93,0.00019451,2]
[350047131,1737591038405,-548.25790251,0.00019451,2]
[350047132,1737591038415,-500.0,0.00019451,2]
[350047133,1737591038425,-500.0,0.00019451,2]
[350047134,1737591038435,-1481.14,0.00019451,2]
[350047135,1737591038445,-500.0,0.00019451,2]
[350047136,1737591038456,-500.0,0.00019451,2]
[350047137,1737591038465,-1162.04,0.00019451,2]
[350047138,1737591038475,-216.77935731,0.00019451,2]
[350047139,1737591038684,-296.7320754,0.00019451,2]
[350047140,1737591038694,-500.0,0.00019451,2]
[350047141,1737591038703,-500.0,0.00019451,2]
[350047142,1737591038713,-500.0,0.00019451,2]
[350047143,1737591038723,-500.0,0.00019451,2]
[350047144,1737591038735,-602.3,0.00019451,2]
[350047145,1737591038745,-702.76,0.00019451,2]
[350047146,1737591038755,-1938.91,0.00019451,2]
[350047147,1737591038765,-558.33,0.00019451,2]
[350047148,1737591038774,-310.282092,0.00019451,2]
[350047149,1737591038784,-821.69,0.00019451,2]
[350047150,1737591038794,-500.0,0.00019451,2]
[350047151,1737591038803,-500.0,0.00019451,2]
[350047153,1737591038812,-259.78389713,0.00019451,2]
[350047156,1737591038832,-240.21610287,0.00019451,2]
[350047158,1737591038842,-992.68,0.00019451,2]
[350047160,1737591038851,-68.34575365,0.00019451,2]
[350047163,1737591039533,-173.55,0.00018298,2]
[350047164,1737591039543,-1296.8475,0.00019078,2]
[350047165,1737591039553,-1020.02424635,0.00019451,2]
[350047166,1737591039563,-500.0,0.00019451,2]
[350047167,1737591039571,-500.0,0.00019451,2]
[350047168,1737591039581,-496.08776722,0.00019451,2]
[350047169,1737591039590,-500.0,0.00019451,2]
[350047170,1737591039600,-500.0,0.00019451,2]
[350047171,1737591039609,-500.0,0.00019451,2]
[350047172,1737591039618,-500.0,0.00019451,2]
[350047173,1737591039628,-428.53154633,0.00019451,2]
[350047174,1737591039644,-571.46845367,0.00019451,2]
[350047175,1737591039653,-500.0,0.00019451,2]
[350047176,1737591039662,-803.41,0.00019451,2]
[350047177,1737591039671,-500.0,0.00019451,2]
[350047178,1737591039681,-500.0,0.00019451,2]
[350047179,1737591039690,-2052.56,0.00019451,2]
[350047180,1737591039699,-500.0,0.00019451,2]
[350047181,1737591039709,-500.0,0.00019451,2]
[350047182,1737591039718,-500.0,0.00019451,2]
[350047183,1737591039727,-705.22,0.00019451,2]
[350047184,1737591039739,-500.0,0.00019451,2]
[350047185,1737591039748,-500.0,0.00019451,2]
[350047186,1737591039757,-520.95310723,0.00019451,2]
[350047187,1737591039767,-500.0,0.00019451,2]
[350047188,1737591039778,-500.0,0.00019451,2]
[350047189,1737591039787,-1280.22,0.00019451,2]
[350047190,1737591039796,-500.0,0.00019451,2]
[350047191,1737591039805,-500.0,0.00019451,2]
[350047192,1737591039814,-500.0,0.00019451,2]
[350047193,1737591039824,-500.0,0.00019451,2]
[350047194,1737591039833,-1334.51,0.00019451,2]
[350047195,1737591039843,-500.0,0.00019451,2]
[350047196,1737591039852,-500.0,0.00019451,2]
[350047197,1737591039862,-500.0,0.00019451,2]
[350047198,1737591039871,-500.0,0.00019451,2]
[350047199,1737591039880,-500.0,0.00019451,2]
[350047200,1737591039889,-500.0,0.00019451,2]
[350047201,1737591039899,-500.0,0.00019451,2]
[350047202,1737591039908,-500.0,0.00019451,2]
[350047203,1737591039917,-500.0,0.00019451,2]
[350047204,1737591039927,-787.07,0.00019451,2]
[350047205,1737591039936,-500.0,0.00019451,2]
[350047206,1737591039945,-500.0,0.00019451,2]
[350047207,1737591039955,-500.0,0.00019451,2]
[350047208,1737591039965,-500.0,0.00019451,2]
[350047209,1737591039974,-500.0,0.00019451,2]
[350047210,1737591039985,-500.0,0.00019451,2]
[350047211,1737591039994,-500.0,0.00019451,2]
[350047212,1737591040003,-500.0,0.00019451,2]
[350047213,1737591040014,-500.0,0.00019451,2]
[350047214,1737591040023,-500.0,0.00019451,2]
[350047215,1737591040034,-500.0,0.00019451,2]
[350047216,1737591040043,-500.0,0.00019451,2]
[350047217,1737591040052,-538.87,0.00019451,2]
[350047218,1737591040061,-500.0,0.00019451,2]
[350047219,1737591040070,-983.87,0.00019451,2]
[350047220,1737591040079,-500.0,0.00019451,2]
[350047221,1737591040087,-779.51,0.00019451,2]
[350047222,1737591040097,-500.0,0.00019451,2]
[350047223,1737591040106,-500.0,0.00019451,2]
[350047224,1737591040158,-459.40049079,0.00019451,2]
[350047225,1737591040168,-500.0,0.00019451,2]
[350047226,1737591040177,-751.59,0.00019451,2]
[350047227,1737591040187,-500.0,0.00019451,2]
[350047228,1737591040197,-500.0,0.00019451,2]
[350047229,1737591040210,-500.0,0.00019451,2]
[350047230,1737591040221,-1702.69,0.00019451,2]
[350047231,1737591040234,-500.0,0.00019451,2]
[350047232,1737591040243,-500.0,0.00019452,2]
[350047233,1737591040252,-500.0,0.00019452,2]
[350047234,1737591040262,-500.0,0.00019452,2]
[350047235,1737591040276,-500.0,0.00019452,2]
[350047236,1737591040286,-500.0,0.00019452,2]
[350047237,1737591040299,-510.07478074,0.00019452,2]
[350047238,1737591040309,-500.0,0.00019452,2]
[350047239,1737591040319,-500.0,0.00019452,2]
[350047240,1737591040329,-500.0,0.00019452,2]
[350047241,1737591040339,-500.0,0.00019452,2]
[350047242,1737591040349,-514.78846079,0.00019452,2]
[350047243,1737591040358,-500.0,0.00019452,2]
[350047244,1737591040367,-500.0,0.00019452,2]
[350047245,1737591040376,-500.0,0.00019452,2]
[350047246,1737591040387,-500.0,0.00019452,2]
[350047247,1737591040396,-500.0,0.00019452,2]
[350047248,1737591040406,-500.0,0.00019452,2]
[350047249,1737591040415,-500.0,0.00019452,2]
[350047250,1737591040425,-500.0,0.00019452,2]
[350047251,1737591040435,-500.0,0.00019452,2]
[350047252,1737591040444,-500.0,0.00019452,2]
[350047253,1737591040454,-500.0,0.00019452,2]
[350047254,1737591040463,-500.0,0.00019452,2]
[350047255,1737591040473,-500.0,0.00019452,2]
[350047256,1737591040482,-500.0,0.00019452,2]
[350047257,1737591040491,-500.0,0.00019452,2]
[350047258,1737591040500,-271.54139549,0.00019452,2]
[350047259,1737591040510,-500.0,0.00019452,2]
[350047260,1737591040519,-500.0,0.00019452,2]
[350047261,1737591040528,-500.0,0.00019452,2]
[350047262,1737591040538,-357.73412678,0.00019452,2]
[350047263,1737591040547,-500.0,0.00019452,2]
[350047264,1737591040556,-500.0,0.00019452,2]
[350047265,1737591040565,-500.0,0.00019452,2]
[350047266,1737591040575,-279.84,0.00019452,2]
[350047267,1737591040586,-500.0,0.00019452,2]
[350047268,1737591040595,-500.0,0.00019452,2]
[350047269,1737591040605,-500.0,0.00019452,2]
[350047270,1737591040614,-500.0,0.00019452,2]
[350047271,1737591040624,-500.0,0.00019452,2]
[350047272,1737591040633,-500.0,0.00019452,2]
[350047273,1737591040643,-500.0,0.00019452,2]
[350047274,1737591040652,-500.0,0.00019452,2]
[350047275,1737591040662,-649.06690135,0.00019452,2]
[350047276,1737591040671,-500.0,0.00019452,2]
[350047277,1737591040681,-500.0,0.00019452,2]
[350047278,1737591040690,-500.0,0.00019452,2]
[350047279,1737591040700,-500.0,0.00019452,2]
[350047280,1737591040709,-500.0,0.00019452,2]
[350047281,1737591040719,-500.0,0.00019452,2]
[350047282,1737591040729,-425.74,0.00019452,2]
[350047283,1737591040739,-500.0,0.00019452,2]
[350047284,1737591040748,-500.0,0.00019452,2]
[350047285,1737591040758,-500.0,0.00019452,2]
[350047286,1737591040767,-500.0,0.00019452,2]
[350047287,1737591040776,-500.0,0.00019452,2]
[350047288,1737591040786,-500.0,0.00019452,2]
[350047289,1737591040795,-500.0,0.00019452,2]
[350047290,1737591040804,-500.0,0.00019452,2]
[350047291,1737591040814,-500.0,0.00019452,2]
[350047292,1737591040824,-500.0,0.00019452,2]
[350047293,1737591040833,-500.0,0.00019452,2]
[350047294,1737591040842,-500.0,0.00019452,2]
[350047295,1737591040853,-924.84,0.00019452,2]
[350047296,1737591040862,-500.0,0.00019452,2]
[350047297,1737591040872,-500.0,0.00019452,2]
[350047298,1737591040881,-496.922814,0.00019452,2]
[350047299,1737591040890,-602.12,0.00019452,2]
[350047300,1737591040899,-500.0,0.00019452,2]
[350047301,1737591040908,-500.0,0.00019452,2]
[350047302,1737591040918,-500.0,0.00019452,2]
[350047303,1737591040927,-1015.47,0.00019452,2]
[350047304,1737591040936,-372.406306,0.00019452,2]
[350047305,1737591040946,-500.0,0.00019452,2]
[350047306,1737591040964,-731.15,0.00019452,2]
[350047307,1737591040978,-500.0,0.00019452,2]
[350047308,1737591040991,-943.79,0.00019452,2]
[350047309,1737591041000,-1579.63,0.00019452,2]
[350047310,1737591041009,-596.8,0.00019452,2]
[350047311,1737591041019,-754.74,0.00019452,2]
[350047312,1737591041028,-1105.85,0.00019452,2]
[350047313,1737591041037,-818.16,0.00019452,2]
[350047314,1737591041047,-500.0,0.00019452,2]
[350047315,1737591041057,-1177.85,0.00019452,2]
[350047316,1737591041067,-511.97,0.00019452,2]
[350047317,1737591041076,-500.0,0.00019452,2]
[350047318,1737591041086,-569.82,0.00019452,2]
[350047319,1737591041096,-500.0,0.00019452,2]
[350047320,1737591041109,-500.0,0.00019452,2]
[350047321,1737591041125,-500.0,0.00019452,2]
[350047322,1737591041134,-500.0,0.00019452,2]
[350047323,1737591041144,-500.0,0.00019452,2]
[350047324,1737591041153,-885.08,0.00019452,2]
[350047325,1737591041162,-500.0,0.00019452,2]
[350047326,1737591041171,-627.3,0.00019452,2]
[350047327,1737591041180,-1225.4,0.00019452,2]
[350047328,1737591041189,-500.0,0.00019452,2]
[350047329,1737591041198,-731.54,0.00019452,2]
[350047330,1737591041209,-500.0,0.00019452,2]
[350047331,1737591041219,-500.0,0.00019452,2]
[350047332,1737591041228,-500.0,0.00019452,2]
[350047333,1737591041239,-500.0,0.00019452,2]
[350047334,1737591041250,-500.0,0.00019452,2]
[350047335,1737591041259,-963.99,0.00019452,2]
[350047336,1737591041268,-870.15,0.00019452,2]
[350047337,1737591041277,-869.43,0.00019452,2]
[350047338,1737591041287,-930.3,0.00019452,2]
[350047339,1737591041298,-500.0,0.00019452,2]
[350047340,1737591041307,-250.0,0.00019471,2]
[350047341,1737591041317,-500.0,0.00019473,2]
[350047342,1737591041326,-3686.6122087,0.00019634,2]
[350047343,1737591041335,-28527.06093591,0.00019705,2]
[350047344,1737591041344,-447.24,0.00019707,2]
[350047345,1737591041354,-500.0,0.00019724,2]
[350047346,1737591041363,-500.0,0.00019724,2]
[350047347,1737591041373,-294.31304138,0.00019725,2]
[350047348,1737591041383,-500.0,0.00019725,2]
[350047349,1737591041392,-596.96,0.00019725,2]
[350047350,1737591041402,-500.0,0.00019725,2]
[350047351,1737591041411,-500.0,0.00019725,2]
[350047352,1737591041420,-500.0,0.00019725,2]
[350047353,1737591041430,-500.0,0.00019725,2]
[350047354,1737591041441,-500.0,0.00019725,2]
[350047355,1737591041458,-500.0,0.00019725,2]
[350047356,1737591041468,-500.0,0.00019725,2]
[350047357,1737591041477,-500.0,0.00019725,2]
[350047358,1737591041488,-500.0,0.00019725,2]
[350047359,1737591041497,-315.45868434,0.00019725,2]
[350047360,1737591041507,-500.0,0.00019725,2]
[350047361,1737591041517,-500.0,0.00019725,2]
[350047362,1737591041526,-500.0,0.00019725,2]
[350047363,1737591041535,-500.0,0.00019725,2]
[350047364,1737591041544,-500.0,0.00019725,2]
[350047365,1737591041553,-500.0,0.00019725,2]
[350047366,1737591041562,-500.0,0.00019725,2]
[350047367,1737591041571,-500.0,0.00019725,2]
[350047368,1737591041581,-500.0,0.00019725,2]
[350047369,1737591041590,-500.0,0.00019725,2]
[350047370,1737591041599,-500.0,0.00019725,2]
[350047371,1737591041608,-500.0,0.00019725,2]
[350047372,1737591041618,-500.0,0.00019725,2]
[350047373,1737591041627,-500.0,0.00019725,2]
[350047374,1737591041636,-500.0,0.00019725,2]
[350047375,1737591041646,-500.0,0.00019725,2]
[350047376,1737591041654,-500.0,0.00019725,2]
[350047377,1737591041663,-513.89,0.00019725,2]
[350047378,1737591041672,-500.0,0.00019725,2]
[350047379,1737591041682,-500.0,0.00019725,2]
[350047380,1737591041691,-620.14,0.00019725,2]
[350047381,1737591041701,-500.0,0.00019725,2]
[350047382,1737591041710,-930.67737696,0.00019725,2]
[350047383,1737591041724,-348.18262304,0.00019725,2]
[350047384,1737591041734,-500.0,0.00019725,2]
[350047385,1737591041743,-500.0,0.00019725,2]
[350047386,1737591041752,-66.076916,0.00019725,2]
[350047387,1737591041773,-555.823084,0.00019725,2]
[350047388,1737591041783,-370.36941893,0.00019725,2]
[350047389,1737591041949,-460.93058107,0.00019725,2]
[350047390,1737591041960,-65.23862486,0.00019725,2]
[350047391,1737591041994,-471.14137514,0.00019725,2]
[350047392,1737591042003,-43.83862486,0.00019725,2]
[350047393,1737591042044,-456.16137514,0.00019725,2]
[350047394,1737591042054,-1830.75,0.00019725,2]
[350047395,1737591042063,-500.0,0.00019725,2]
[350047396,1737591042072,-595.8,0.00019725,2]
[350047397,1737591042082,-780.93,0.00019725,2]
[350047398,1737591042091,-500.0,0.00019725,2]
[350047399,1737591042100,-500.0,0.00019725,2]
[350047400,1737591042111,-1027.1232148,0.00019725,2]
[350047409,1737591043533,-1172.29,0.00019178,2]
[350047410,1737591043543,-500.0,0.0001945,2]
[350047411,1737591043553,-1172.29,0.00019452,2]
[350047412,1737591043562,-454.0167852,0.00019725,2]
[350047413,1737591043571,-1162.04,0.00019725,2]
[350047414,1737591043581,-500.0,0.00019725,2]
[350047415,1737591043595,-500.0,0.00019725,2]
[350047416,1737591043615,-500.0,0.00019725,2]
[350047417,1737591043624,-439.3632149,0.00019725,2]
[350047418,1737591043635,-162.9367851,0.00019725,2]
[350047420,1737591043644,-702.76,0.00019725,2]
[350047421,1737591043654,-1938.91,0.00019725,2]
[350047422,1737591043663,-558.33,0.00019725,2]
[350047423,1737591043672,-821.69,0.00019725,2]
[350047424,1737591043681,-500.0,0.00019725,2]
[350047425,1737591043690,-500.0,0.00019725,2]
[350047427,1737591043699,-500.0,0.00019725,2]
[350047428,1737591043708,-992.68,0.00019725,2]
[350047429,1737591043718,-1088.37,0.00019725,2]
[350047430,1737591043727,-500.0,0.00019725,2]
[350047431,1737591043736,-500.0,0.00019725,2]
[350047432,1737591043746,-500.0,0.00019725,2]
[350047433,1737591043755,-500.0,0.00019725,2]
[350047434,1737591043765,-1000.0,0.00019725,2]
[350047435,1737591043774,-803.41,0.00019725,2]
[350047436,1737591043784,-500.0,0.00019725,2]
[350047437,1737591043793,-2052.56,0.00019725,2]
[350047438,1737591043803,-500.0,0.00019725,2]
[350047439,1737591043813,-705.22,0.00019725,2]
[350047440,1737591043822,-500.0,0.00019725,2]
[350047441,1737591043831,-500.0,0.00019725,2]
[350047442,1737591043840,-1280.22,0.00019725,2]
[350047443,1737591043850,-1334.51,0.00019725,2]
[350047444,1737591043859,-500.0,0.00019725,2]
[350047445,1737591043869,-500.0,0.00019725,2]
[350047446,1737591043878,-500.0,0.00019725,2]
[350047447,1737591043887,-500.0,0.00019725,2]
[350047448,1737591043896,-787.07,0.00019725,2]
[350047449,1737591043905,-340.74590459,0.00019725,2]
[350047450,1737591043914,-500.0,0.00019725,2]
[350047451,1737591043923,-516.56849469,0.00019725,2]
[350047452,1737591043933,-500.0,0.00019725,2]
[350047453,1737591043942,-500.0,0.00019725,2]
[350047454,1737591043952,-500.0,0.00019725,2]
[350047455,1737591043963,-500.0,0.00019725,2]
[350047456,1737591043974,-538.87,0.00019725,2]
[350047457,1737591043989,-500.0,0.00019725,2]
[350047458,1737591044000,-983.87,0.00019725,2]
[350047459,1737591044011,-472.91,0.00019725,2]
[350047460,1737591044022,-779.51,0.00019725,2]
[350047461,1737591044032,-500.0,0.00019725,2]
[350047462,1737591044044,-500.0,0.00019725,2]
[350047463,1737591044054,-500.0,0.00019725,2]
[350047464,1737591044065,-751.59,0.00019725,2]
[350047466,1737591044076,-500.0,0.00019725,2]
[350047467,1737591044086,-500.0,0.00019725,2]
[350047469,1737591044096,-1702.69,0.00019725,2]
[350047471,1737591044106,-500.0,0.00019726,2]
[350047473,1737591044117,-500.0,0.00019726,2]
[350047476,1737591044127,-500.0,0.00019726,2]
[350047478,1737591044137,-500.0,0.00019726,2]
[350047479,1737591044147,-500.0,0.00019726,2]
[350047480,1737591044157,-500.0,0.00019726,2]
[350047481,1737591044166,-500.0,0.00019726,2]
[350047482,1737591044176,-515.55760062,0.00019726,2]
[350047483,1737591044186,-500.0,0.00019726,2]
[350047484,1737591044196,-500.0,0.00019726,2]
[350047485,1737591044206,-500.0,0.00019726,2]
[350047486,1737591044218,-500.0,0.00019726,2]
[350047487,1737591044229,-258.64,0.00019726,2]
[350047488,1737591044242,-500.0,0.00019726,2]
[350047489,1737591044253,-500.0,0.00019726,2]
[350047490,1737591044262,-500.0,0.00019726,2]
[350047491,1737591044273,-500.0,0.00019726,2]
[350047492,1737591044283,-500.0,0.00019726,2]
[350047493,1737591044295,-161.11,0.00019726,2]
[350047494,1737591044305,-500.0,0.00019726,2]
[350047495,1737591044315,-500.0,0.00019726,2]
[350047496,1737591044324,-500.0,0.00019726,2]
[350047497,1737591044334,-500.0,0.00019726,2]
[350047498,1737591044343,-500.0,0.00019726,2]
[350047499,1737591044353,-500.0,0.00019726,2]
[350047500,1737591044363,-594.90015086,0.00019726,2]
[350047501,1737591044372,-500.0,0.00019726,2]
[350047502,1737591044382,-500.0,0.00019726,2]
[350047503,1737591044392,-500.0,0.00019726,2]
[350047504,1737591044402,-500.0,0.00019726,2]
[350047505,1737591044412,-500.0,0.00019726,2]
[350047506,1737591044422,-500.0,0.00019726,2]
[350047507,1737591044432,-500.0,0.00019726,2]
[350047508,1737591044442,-496.922814,0.00019726,2]
[350047509,1737591044451,-602.12,0.00019726,2]
[350047510,1737591044462,-500.0,0.00019726,2]
[350047511,1737591044478,-500.0,0.00019726,2]
[350047512,1737591044492,-500.0,0.00019726,2]
[350047513,1737591044501,-1015.47,0.00019726,2]
[350047514,1737591044510,-372.406306,0.00019726,2]
[350047515,1737591044519,-500.0,0.00019726,2]
[350047516,1737591044529,-731.15,0.00019726,2]
[350047517,1737591044539,-500.0,0.00019726,2]
[350047518,1737591044548,-943.79,0.00019726,2]
[350047519,1737591044557,-1579.63,0.00019726,2]
[350047520,1737591044567,-596.8,0.00019726,2]
[350047521,1737591044576,-754.74,0.00019726,2]
[350047522,1737591044586,-1105.85,0.00019726,2]
[350047523,1737591044595,-818.16,0.00019726,2]
[350047524,1737591044608,-500.0,0.00019726,2]
[350047525,1737591044618,-1177.85,0.00019726,2]
[350047526,1737591044628,-511.97,0.00019726,2]
[350047527,1737591044639,-500.0,0.00019726,2]
[350047528,1737591044649,-569.82,0.00019726,2]
[350047529,1737591044660,-500.0,0.00019726,2]
[350047530,1737591044669,-500.0,0.00019726,2]
[350047531,1737591044680,-500.0,0.00019726,2]
[350047532,1737591044690,-500.0,0.00019726,2]
[350047533,1737591044700,-500.0,0.00019726,2]
[350047534,1737591044710,-885.08,0.00019726,2]
[350047535,1737591044720,-500.0,0.00019726,2]
[350047536,1737591044730,-627.3,0.00019726,2]
[350047537,1737591044742,-1225.4,0.00019726,2]
[350047538,1737591044752,-500.0,0.00019726,2]
[350047539,1737591044762,-731.54,0.00019726,2]
[350047540,1737591044771,-500.0,0.00019726,2]
[350047541,1737591044781,-500.0,0.00019726,2]
[350047542,1737591044791,-500.0,0.00019726,2]
[350047543,1737591044800,-500.0,0.00019726,2]
[350047544,1737591044809,-500.0,0.00019726,2]
[350047545,1737591044818,-963.99,0.00019726,2]
[350047546,1737591044828,-870.15,0.00019726,2]
[350047547,1737591044838,-869.43,0.00019726,2]
[350047548,1737591044848,-930.3,0.00019726,2]
[350047549,1737591044858,-500.0,0.00019726,2]
[350047550,1737591044868,-173.55,0.00019808,2]
[350047551,1737591044877,-330.58,0.00019852,2]
[350047552,1737591044887,-3686.6122087,0.00019917,2]
[350047553,1737591044897,-205.68405653,0.00019998,2]
[350047554,1737591044908,-500.0,0.00019998,2]
[350047555,1737591044918,-500.0,0.00019999,2]
[350047556,1737591044927,-500.0,0.00019999,2]
[350047557,1737591044938,-500.0,0.00019999,2]
[350047558,1737591044949,-500.0,0.00019999,2]
[350047559,1737591044959,-500.0,0.00019999,2]
[350047560,1737591044968,-500.0,0.00019999,2]
[350047561,1737591044978,-500.0,0.00019999,2]
[350047562,1737591044988,-500.0,0.00019999,2]
[350047563,1737591044997,-500.0,0.00019999,2]
[350047564,1737591045007,-500.0,0.00019999,2]
[350047565,1737591045017,-500.0,0.00019999,2]
[350047566,1737591045027,-500.0,0.00019999,2]
[350047567,1737591045037,-500.0,0.00019999,2]
[350047568,1737591045047,-500.0,0.00019999,2]
[350047569,1737591045056,-500.0,0.00019999,2]
[350047570,1737591045066,-500.0,0.00019999,2]
[350047571,1737591045077,-500.0,0.00019999,2]
[350047572,1737591045087,-500.0,0.00019999,2]
[350047573,1737591045096,-500.0,0.00019999,2]
[350047574,1737591045106,-500.0,0.00019999,2]
[350047575,1737591045115,-500.0,0.00019999,2]